bitfinex/quotes_BTCUSD_20250601
["timestamp","ask_amount","ask_price","bid_price","bid_amount"]
[1748739376665,1.77701932,104460.0,104450.0,0.04486484]
[1748739376867,1.77701932,104460.0,104450.0,0.03588943]
[1748739377409,1.77701932,104460.0,104450.0,0.04486484]
[1748739377598,1.77701932,104460.0,104450.0,0.03588943]
[1748739381195,1.77701932,104460.0,104450.0,0.04486485]
[1748739381387,1.77701932,104460.0,104450.0,0.03588943]
[1748739381586,1.77701932,104460.0,104450.0,0.04486484]
[1748739382033,1.77701932,104460.0,104450.0,0.03588943]
[1748739382454,1.77701932,104460.0,104450.0,0.04486484]
[1748739382887,1.77701932,104460.0,104450.0,0.03588943]
[1748739384507,1.77701932,104460.0,104450.0,0.04486484]
[1748739384695,1.77701932,104460.0,104450.0,0.03588943]
[1748739385193,1.77701932,104460.0,104450.0,0.04486484]
[1748739385402,1.77701932,104460.0,104450.0,0.03588943]
[1748739385616,1.77701932,104460.0,104450.0,0.04486485]
[1748739385824,1.77701932,104460.0,104450.0,0.03588943]
[1748739386031,1.77701932,104460.0,104450.0,0.04486482]
[1748739386296,1.77701932,104460.0,104450.0,0.03588943]
[1748739386738,1.77701932,104460.0,104450.0,0.04486481]
[1748739386945,1.77701932,104460.0,104450.0,0.03588943]
[1748739388219,1.80587469,104460.0,104450.0,0.03588943]
[1748739388428,1.80587469,104460.0,104450.0,0.04486484]
[1748739388645,1.80587469,104460.0,104450.0,0.03588943]
[1748739389901,1.77701932,104460.0,104450.0,0.03588943]
[1748739390568,1.06937932,104460.0,104450.0,0.03588943]
[1748739390798,0.48638146,104460.0,104450.0,0.27179558]
[1748739391037,0.66827009,104460.0,104450.0,0.25608973]
[1748739391275,0.65869779,104460.0,104450.0,0.2532468]
[1748739391477,0.65869779,104460.0,104450.0,0.26222076]
[1748739391690,0.64912521,104460.0,104450.0,0.26895122]
[1748739391838,0.64912521,104460.0,104450.0,0.26222076]
[1748739392053,0.64912521,104460.0,104450.0,0.27179435]
[1748739392457,0.64912521,104460.0,104450.0,0.2785248]
[1748739392657,0.64912521,104460.0,104450.0,0.28525525]
[1748739393207,0.64912521,104460.0,104450.0,0.27852489]
[1748739394243,0.64912521,104460.0,104450.0,0.28809848]
[1748739394445,0.64912521,104460.0,104450.0,0.32175075]
[1748739394649,0.45766437,104460.0,104450.0,0.30604636]
[1748739394854,0.45766437,104460.0,104450.0,0.29707242]
[1748739395064,0.45766437,104460.0,104450.0,0.30604636]
[1748739395249,0.45766437,104460.0,104450.0,0.29707242]
[1748739395432,0.45766437,104460.0,104450.0,0.30380287]
[1748739395776,0.45766437,104460.0,104450.0,0.30604634]
[1748739395979,0.45766437,104460.0,104450.0,0.31442059]
[1748739396130,0.45766437,104460.0,104450.0,0.30604634]
[1748739396343,0.45766437,104460.0,104450.0,0.28749883]
[1748739396544,0.45766437,104460.0,104450.0,0.3217507]
[1748739396750,0.75430382,104460.0,104450.0,0.31337617]
[1748739396944,0.76387658,104460.0,104450.0,0.33745502]
[1748739397149,0.76387658,104460.0,104450.0,0.31053329]
[1748739397367,0.76387658,104460.0,104450.0,0.34029799]
[1748739397598,0.76387658,104460.0,104450.0,0.31337571]
[1748739397785,0.76387658,104460.0,104450.0,0.3038025]
[1748739397983,0.76387658,104460.0,104450.0,0.32010633]
[1748739398186,0.77344943,104460.0,104450.0,0.3133759]
[1748739398599,0.77344943,104460.0,104450.0,0.3038025]
[1748739398798,0.76387658,104460.0,104450.0,0.3133759]
[1748739399001,0.76387658,104460.0,104450.0,0.29422873]
[1748739399157,0.76387658,104460.0,104450.0,0.30380213]
[1748739399725,0.76387658,104460.0,104450.0,0.30320264]
[1748739399935,0.76387658,104460.0,104450.0,0.30380213]
[1748739400488,0.77344953,104460.0,104450.0,0.30320264]
[1748739400689,0.76387658,104460.0,104450.0,0.30380213]
[1748739400932,0.77344943,104460.0,104450.0,0.32174997]
[1748739401087,0.77344943,104460.0,104450.0,0.29422873]
[1748739401289,0.75430418,104460.0,104450.0,0.28465559]
[1748739401559,0.76387713,104460.0,104450.0,0.29422918]
[1748739404274,0.77345017,104460.0,104450.0,0.30260342]
[1748739404427,0.77345017,104460.0,104450.0,0.29138603]
[1748739404674,0.77345017,104460.0,104450.0,0.28465559]
[1748739405381,0.77345017,104460.0,104450.0,0.29138603]
[1748739405599,0.77345017,104460.0,104450.0,0.2936295]
[1748739405831,0.77345017,104460.0,104450.0,0.31217701]
[1748739406053,0.77345017,104460.0,104450.0,0.30095961]
[1748739406263,0.77345017,104460.0,104450.0,0.28465559]
[1748739406485,0.77345017,104460.0,104450.0,0.29138602]
[1748739406685,0.77345017,104460.0,104450.0,0.28465559]
[1748739407112,0.76387713,104460.0,104450.0,0.29422918]
[1748739407351,0.95533797,104460.0,104450.0,0.28405582]
[1748739407612,1.04784919,104460.0,104450.0,0.29422954]
[1748739407839,1.04784919,104460.0,104450.0,0.3189078]
[1748739408041,0.95533797,104460.0,104450.0,0.3121774]
[1748739408317,0.95533797,104460.0,104450.0,0.28465577]
[1748739409047,0.95533797,104460.0,104450.0,0.29422954]
[1748739409487,0.95533797,104460.0,104450.0,0.30096008]
[1748739409699,0.95533797,104460.0,104450.0,0.31217767]
[1748739410150,0.95533797,104460.0,104450.0,0.29138631]
[1748739410360,0.95533797,104460.0,104450.0,0.28465577]
[1748739410573,0.95533797,104460.0,104450.0,0.31157795]
[1748739410790,0.95533797,104460.0,104450.0,0.29138631]
[1748739411005,0.95533797,104460.0,104450.0,0.28465577]
[1748739411227,0.95533797,104460.0,104450.0,0.29198521]
[1748739411447,0.95533797,104460.0,104450.0,0.29422873]
[1748739411866,0.95533797,104460.0,104450.0,0.30095927]
[1748739412020,0.95533797,104460.0,104450.0,0.29198521]
[1748739412238,0.95457797,104460.0,104450.0,0.28525467]
[1748739412437,0.95457797,104460.0,104450.0,0.29198521]
[1748739412848,0.95457797,104460.0,104450.0,0.28465495]
[1748739413056,0.95457797,104460.0,104450.0,0.29422872]
[1748739413293,0.95457797,104460.0,104450.0,0.28525467]
[1748739413486,0.95457797,104460.0,104450.0,0.2756809]
[1748739413704,0.95457797,104460.0,104450.0,0.28525467]
[1748739413925,0.95457797,104460.0,104450.0,0.31217686]
[1748739414127,0.95457797,104460.0,104450.0,0.3032028]
[1748739414340,0.95457797,104460.0,104450.0,0.28525467]
[1748739414543,0.95457797,104460.0,104450.0,0.3032028]
[1748739414769,0.95457797,104460.0,104450.0,0.29198521]
[1748739415202,0.95457797,104460.0,104450.0,0.28525467]
[1748739415422,0.95457797,104460.0,104450.0,0.29198521]
[1748739415823,0.95457797,104460.0,104450.0,0.28525467]
[1748739416722,0.95457797,104460.0,104450.0,0.29198521]
[1748739416940,0.95457797,104460.0,104450.0,0.29422873]
[1748739417395,0.95457797,104460.0,104450.0,0.28525467]
[1748739418061,0.95457797,104460.0,104450.0,0.29198521]
[1748739418335,0.95457797,104460.0,104450.0,0.30993334]
[1748739418504,0.95457797,104460.0,104450.0,0.28525467]
[1748739419316,0.95457797,104460.0,104450.0,0.3032028]
[1748739419519,0.95457797,104460.0,104450.0,0.28525467]
[1748739419726,0.95457797,104460.0,104450.0,0.2756809]
[1748739419900,0.95457797,104460.0,104450.0,0.28465496]
[1748739420098,0.95457797,104460.0,104450.0,0.2756809]
[1748739420303,0.95457797,104460.0,104450.0,0.28525467]
[1748739420772,0.95457797,104460.0,104450.0,0.29198521]
[1748739420988,0.95457797,104460.0,104450.0,0.28525467]
[1748739421195,0.95457797,104460.0,104450.0,0.29422873]
[1748739421411,0.95457797,104460.0,104450.0,0.32175054]
[1748739421660,0.95457797,104460.0,104450.0,0.28525467]
[1748739421907,0.95457797,104460.0,104450.0,0.30320278]
[1748739422135,0.95457797,104460.0,104450.0,0.29198521]
[1748739422350,0.95457797,104460.0,104450.0,0.29198517]
[1748739422594,0.76243713,104460.0,104450.0,0.31277633]
[1748739422828,0.76243713,104460.0,104450.0,0.29482835]
[1748739423036,0.75286418,104460.0,104450.0,0.30440175]
[1748739423246,0.75286418,104460.0,104450.0,0.30440185]
[1748739423459,0.76243713,104460.0,104450.0,0.3044013]
[1748739423673,0.76243713,104460.0,104450.0,0.2852544]
[1748739423914,0.76243713,104460.0,104450.0,0.30380203]
[1748739424123,0.76243713,104460.0,104450.0,0.29482799]
[1748739424382,0.76243713,104460.0,104450.0,0.30380203]
[1748739424562,0.76243713,104460.0,104450.0,0.33805414]
[1748739424814,0.75286418,104460.0,104450.0,0.30440149]
[1748739425028,0.76243713,104460.0,104450.0,0.30380162]
[1748739425261,0.76243713,104460.0,104450.0,0.29482763]
[1748739425711,0.77201017,104460.0,104450.0,0.28525413]
[1748739425924,0.77201017,104460.0,104450.0,0.30095872]
[1748739426135,0.77201017,104460.0,104450.0,0.28525413]
[1748739426407,0.77201017,104460.0,104450.0,0.27568054]
[1748739426692,0.77201017,104460.0,104450.0,0.28525413]
[1748739426940,0.77201017,104460.0,104450.0,0.30933326]
[1748739427202,0.77201017,104460.0,104450.0,0.31890685]
[1748739427666,0.77201017,104460.0,104450.0,0.29422817]
[1748739427871,0.77201017,104460.0,104450.0,0.31890678]
[1748739428295,0.77201017,104460.0,104450.0,0.29138511]
[1748739428498,0.77201017,104460.0,104450.0,0.28465458]
[1748739428708,0.77201017,104460.0,104450.0,0.28525413]
[1748739429126,0.77201017,104460.0,104450.0,0.29422817]
[1748739429328,0.77201017,104460.0,104450.0,0.27568054]
[1748739429535,0.77201017,104460.0,104450.0,0.29362862]
[1748739429740,0.77201017,104460.0,104450.0,0.28465458]
[1748739429942,0.77201017,104460.0,104450.0,0.27568054]
[1748739430157,0.96347101,104460.0,104450.0,0.26550713]
[1748739430368,0.96347101,104460.0,104450.0,0.28465476]
[1748739430591,0.96347101,104460.0,104450.0,0.2936288]
[1748739430996,0.96347101,104460.0,104450.0,0.30260287]
[1748739431202,0.96347101,104460.0,104450.0,0.28241125]
[1748739431407,0.96347101,104460.0,104450.0,0.28465476]
[1748739431535,0.96347101,104460.0,104450.0,0.29362881]
[1748739431997,0.96347101,104460.0,104450.0,0.28241125]
[1748739432228,0.96347101,104460.0,104450.0,0.29362881]
[1748739432537,0.96347101,104460.0,104450.0,0.27568072]
[1748739432747,0.96347101,104460.0,104450.0,0.2852544]
[1748739433042,0.96347101,104460.0,104450.0,0.2913853]
[1748739433246,0.96347101,104460.0,104450.0,0.30260287]
[1748739433425,0.96347101,104460.0,104450.0,0.2852544]
[1748739433625,0.96347101,104460.0,104450.0,0.29198493]
[1748739433830,0.96347101,104460.0,104450.0,0.2852544]
[1748739434039,0.96347101,104460.0,104450.0,0.30320249]
[1748739434215,0.96347101,104460.0,104450.0,0.2852544]
[1748739434619,0.96347101,104460.0,104450.0,0.31890706]
[1748739434838,0.96347101,104460.0,104450.0,0.29975961]
[1748739435012,0.95389834,104460.0,104450.0,0.29975962]
[1748739435239,0.95389834,104460.0,104450.0,0.30035935]
[1748739435440,0.95389834,104460.0,104450.0,0.29362882]
[1748739435617,0.95389834,104460.0,104450.0,0.26610695]
[1748739435840,0.95389834,104460.0,104450.0,0.28465477]
[1748739435999,0.95389834,104460.0,104450.0,0.27568072]
[1748739436458,0.95389834,104460.0,104450.0,0.3093334]
[1748739436596,0.95389834,104460.0,104450.0,0.29975963]
[1748739436805,0.95389834,104460.0,104450.0,0.3093334]
[1748739437016,0.95389834,104460.0,104450.0,0.30933338]
[1748739437224,0.95389834,104460.0,104450.0,0.30933337]
[1748739437427,0.95389834,104460.0,104450.0,0.28465476]
[1748739437632,0.95389834,104460.0,104450.0,0.27568072]
[1748739438029,0.95389834,104460.0,104450.0,0.30933338]
[1748739439198,0.97029834,104460.0,104450.0,0.27568072]
[1748739439381,0.98619834,104460.0,104450.0,0.30933325]
[1748739439645,0.98619834,104460.0,104450.0,0.27568072]
[1748739439824,0.97662558,104460.0,104450.0,0.27568072]
[1748739440039,0.97662558,104460.0,104450.0,0.30933325]
[1748739440676,0.97662558,104460.0,104450.0,0.28241122]
[1748739440891,0.97662558,104460.0,104450.0,0.30933325]
[1748739441319,0.97662558,104460.0,104450.0,0.26610695]
[1748739441528,0.97662558,104460.0,104450.0,0.30933325]
[1748739441908,0.97662558,104460.0,104450.0,0.30933324]
[1748739442087,0.97662558,104460.0,104450.0,0.29975947]
[1748739442307,0.97662558,104460.0,104450.0,0.2997593]
[1748739443079,0.97662558,104460.0,104450.0,0.30933308]
[1748739443261,0.97662558,104460.0,104450.0,0.29138516]
[1748739443486,0.97662558,104460.0,104450.0,0.30933308]
[1748739444139,0.97662558,104460.0,104450.0,0.30260261]
[1748739444389,0.97662558,104460.0,104450.0,0.30933308]
[1748739444590,0.97662558,104460.0,104450.0,0.30933307]
[1748739444795,0.97662558,104460.0,104450.0,0.28241119]
[1748739444937,0.97662558,104460.0,104450.0,0.30933304]
[1748739445142,0.97662558,104460.0,104450.0,0.27568072]
[1748739445351,0.97662558,104460.0,104450.0,0.30933293]
[1748739445763,0.97662558,104460.0,104450.0,0.30933289]
[1748739446644,0.97662558,104460.0,104450.0,0.30933292]
[1748739447040,0.97662558,104460.0,104450.0,0.30933236]
[1748739447586,0.97662558,104460.0,104450.0,0.30933254]
[1748739447786,0.97662558,104460.0,104450.0,0.30933263]
[1748739448306,0.97662558,104460.0,104450.0,0.30933192]
[1748739448501,0.97662558,104460.0,104450.0,0.30260104]
[1748739448702,0.97662558,104460.0,104450.0,0.30260113]
[1748739448907,0.97662558,104460.0,104450.0,0.30035765]
[1748739449049,0.97662558,104460.0,104450.0,0.30933055]
[1748739449598,0.68142558,104460.0,104450.0,0.3189043]
[1748739449781,0.97558558,104460.0,104450.0,0.3189043]
[1748739450151,0.97558558,104460.0,104450.0,0.31890398]
[1748739450354,0.97558558,104460.0,104450.0,0.29198453]
[1748739450557,0.97558558,104460.0,104450.0,0.29422781]
[1748739450735,0.97558558,104460.0,104450.0,0.29198453]
[1748739450975,0.97558558,104460.0,104450.0,0.29198452]
[1748739451172,0.97558558,104460.0,104450.0,0.29482835]
[1748739451375,0.97558558,104460.0,104450.0,0.28525467]
[1748739451789,0.97558558,104460.0,104450.0,0.30320095]
[1748739452088,0.97558558,104460.0,104450.0,0.29198453]
[1748739452290,0.97558558,104460.0,104450.0,0.28525467]
[1748739452488,0.97558558,104460.0,104450.0,0.29198453]
[1748739452711,0.97558558,104460.0,104450.0,0.29198454]
[1748739452928,0.97558558,104460.0,104450.0,0.28525467]
[1748739453060,0.97558558,104460.0,104450.0,0.2942278]
[1748739453268,0.97558558,104460.0,104450.0,0.2824107]
[1748739453495,0.97558558,104460.0,104450.0,0.28525467]
[1748739453695,0.97558558,104460.0,104450.0,0.29198448]
[1748739453873,0.97558558,104460.0,104450.0,0.28525467]
[1748739454284,0.97558558,104460.0,104450.0,0.2824107]
[1748739454483,0.97558558,104460.0,104450.0,0.2756809]
[1748739454741,0.95918558,104460.0,104450.0,0.2756809]
[1748739454892,0.94328558,104460.0,104450.0,0.30932996]
[1748739455099,0.94328558,104460.0,104450.0,0.2997561]
[1748739455302,0.94328558,104460.0,104450.0,0.30933012]
[1748739455604,0.94328558,104460.0,104450.0,0.30260029]
[1748739455808,0.94328558,104460.0,104450.0,0.2756809]
[1748739456013,0.94328558,104460.0,104450.0,0.30933013]
[1748739457184,0.94328558,104460.0,104450.0,0.30933015]
[1748739457380,0.94328558,104460.0,104450.0,0.30933026]
[1748739457606,0.94328558,104460.0,104450.0,0.31890405]
[1748739458028,0.94328558,104460.0,104450.0,0.32847774]
[1748739458234,0.94328558,104460.0,104450.0,0.30933029]
[1748739458923,0.94328558,104460.0,104450.0,0.29362724]
[1748739459127,0.94328558,104460.0,104450.0,0.30933032]
[1748739459411,0.94328558,104460.0,104450.0,0.30035713]
[1748739459597,0.94328558,104460.0,104450.0,0.3093303]
[1748739460113,0.94328558,104460.0,104450.0,0.2756809]
[1748739460338,0.94328558,104460.0,104450.0,0.30933041]
[1748739460667,0.94328558,104460.0,104450.0,0.30933043]
[1748739461073,0.94328558,104460.0,104450.0,0.30933051]
[1748739461380,0.94328558,104460.0,104450.0,0.3003609]
[1748739462409,0.94328558,104460.0,104450.0,0.30036092]
[1748739462634,0.94328558,104460.0,104450.0,0.30036104]
[1748739464264,0.94328558,104460.0,104450.0,0.30036105]
[1748739464550,0.94328558,104460.0,104450.0,0.30036107]
[1748739464838,0.94328558,104460.0,104450.0,0.30036114]
[1748739465196,0.94328558,104460.0,104450.0,0.28241455]
[1748739465399,0.94328558,104460.0,104450.0,0.30036114]
[1748739466203,0.94328558,104460.0,104450.0,0.30036116]
[1748739466381,0.94328558,104460.0,104450.0,0.29138789]
[1748739466608,0.94328558,104460.0,104450.0,0.3003612]
[1748739467313,0.94328558,104460.0,104450.0,0.30036121]
[1748739468114,0.94328558,104460.0,104450.0,0.30036131]
[1748739468310,0.94328558,104460.0,104450.0,0.29078745]
[1748739468521,0.94328558,104460.0,104450.0,0.30036133]
[1748739468747,0.94328558,104460.0,104450.0,0.30036146]
[1748739468928,0.94328558,104460.0,104450.0,0.26671129]
[1748739469104,0.94328558,104460.0,104450.0,0.30993531]
[1748739469645,0.64912558,104460.0,104450.0,0.30993531]
[1748739469854,0.94324558,104460.0,104450.0,0.30993527]
[1748739470341,0.94324558,104460.0,104450.0,0.30096162]
[1748739470548,0.64912558,104460.0,104450.0,0.28585865]
[1748739470765,0.75178474,104460.0,104450.0,0.31950859]
[1748739471155,0.94324558,104460.0,104450.0,0.30993491]
[1748739471300,0.94324558,104460.0,104450.0,0.28301882]
[1748739471656,0.94324558,104460.0,104450.0,0.30096527]
[1748739471881,0.94324558,104460.0,104450.0,0.30096523]
[1748739472266,0.94324558,104460.0,104450.0,0.3009653]
[1748739472463,0.94324558,104460.0,104450.0,0.29139153]
[1748739472869,0.94324558,104460.0,104450.0,0.28466158]
[1748739473029,0.94324558,104460.0,104450.0,0.25774179]
[1748739473226,0.94324558,104460.0,104450.0,0.27344503]
[1748739473455,0.94324558,104460.0,104450.0,0.30096537]
[1748739473782,0.94324558,104460.0,104450.0,0.30096541]
[1748739473970,0.94324558,104460.0,104450.0,0.30096543]
[1748739474291,0.94324558,104460.0,104450.0,0.27404553]
[1748739474439,0.94324558,104460.0,104450.0,0.30096543]
[1748739475075,0.94324558,104460.0,104450.0,0.30096546]
[1748739475274,0.94324558,104460.0,104450.0,0.30096554]
[1748739475476,0.94324558,104460.0,104450.0,0.30096558]
[1748739475672,0.94324558,104460.0,104450.0,0.29423562]
[1748739475892,0.94324558,104460.0,104450.0,0.30096563]
[1748739476088,0.94324558,104460.0,104450.0,0.30096581]
[1748739476380,0.94324558,104460.0,104450.0,0.28301901]
[1748739476733,0.75166437,104460.0,104450.0,0.31053949]
[1748739477332,0.75166437,104460.0,104450.0,0.31053943]
[1748739477535,0.75166437,104460.0,104450.0,0.32011302]
[1748739477810,0.75166437,104460.0,104450.0,0.31053946]
[1748739477940,0.75166437,104460.0,104450.0,0.27688924]
[1748739478147,0.75166437,104460.0,104450.0,0.29483608]
[1748739478343,0.94312521,104460.0,104450.0,0.31053956]
[1748739478699,0.94312521,104460.0,104450.0,0.29139211]
[1748739478900,0.94312521,104460.0,104450.0,0.29139257]
[1748739479111,0.94312521,104460.0,104450.0,0.30096634]
[1748739479317,0.94312521,104460.0,104450.0,0.30096611]
[1748739479739,0.94312521,104460.0,104450.0,0.27628885]
[1748739479980,0.94312521,104460.0,104450.0,0.30096535]
[1748739480136,0.94312521,104460.0,104450.0,0.30096533]
[1748739480341,0.94312521,104460.0,104450.0,0.30096543]
[1748739480820,0.94312521,104460.0,104450.0,0.30096562]
[1748739481015,0.94312521,104460.0,104450.0,0.29139185]
[1748739481242,0.94312521,104460.0,104450.0,0.30096537]
[1748739481419,0.94312521,104460.0,104450.0,0.30096436]
[1748739481644,0.94312521,104460.0,104450.0,0.29139059]
[1748739481995,0.94312521,104460.0,104450.0,0.30096427]
[1748739482328,0.94312521,104460.0,104450.0,0.30096409]
[1748739482528,0.94312521,104460.0,104450.0,0.29139032]
[1748739482832,0.94312521,104460.0,104450.0,0.30096409]
[1748739483392,0.94312521,104460.0,104450.0,0.28301777]
[1748739483604,0.94312521,104460.0,104450.0,0.30096315]
[1748739483734,0.94312521,104460.0,104450.0,0.29423363]
[1748739483939,0.94312521,104460.0,104450.0,0.30096315]
[1748739484635,0.94312521,104460.0,104450.0,0.30096296]
[1748739484849,0.94312521,104460.0,104450.0,0.29138901]
[1748739485291,0.94312521,104460.0,104450.0,0.27628813]
[1748739485500,0.94312521,104460.0,104450.0,0.29423327]
[1748739485707,0.94312521,104460.0,104450.0,0.27404499]
[1748739485911,0.94312521,104460.0,104450.0,0.26731556]
[1748739486322,0.94312521,104460.0,104450.0,0.27404499]
[1748739486477,0.94312521,104460.0,104450.0,0.30096271]
[1748739486682,0.94312521,104460.0,104450.0,0.28301756]
[1748739486871,0.94312521,104460.0,104450.0,0.31053601]
[1748739487072,0.94312521,104460.0,104450.0,0.310536]
[1748739487351,0.94312521,104460.0,104450.0,0.30156353]
[1748739487494,0.94312521,104460.0,104450.0,0.31053599]
[1748739487911,0.94312521,104460.0,104450.0,0.31053596]
[1748739488430,0.94312521,104460.0,104450.0,0.32010955]
[1748739488622,0.94312521,104460.0,104450.0,0.31053592]
[1748739489057,0.94312521,104460.0,104450.0,0.31053525]
[1748739489263,0.94312521,104460.0,104450.0,0.32010884]
[1748739489469,0.94312521,104460.0,104450.0,0.30440731]
[1748739489692,0.94312521,104460.0,104450.0,0.32010873]
[1748739489896,0.94312521,104460.0,104450.0,0.31053514]
[1748739490384,0.94312521,104460.0,104450.0,0.31053524]
[1748739490589,0.94312521,104460.0,104450.0,0.31053546]
[1748739490794,0.94312521,104460.0,104450.0,0.31053555]
[1748739491405,0.94312521,104460.0,104450.0,0.27688614]
[1748739491554,0.94312521,104460.0,104450.0,0.29258776]
[1748739491760,0.94312521,104460.0,104450.0,0.29198643]
[1748739492113,0.94312521,104460.0,104450.0,0.30156011]
[1748739492444,0.94312521,104460.0,104450.0,0.26791379]
[1748739492649,0.94312521,104460.0,104450.0,0.30155991]
[1748739492851,0.94312521,104460.0,104450.0,0.29483068]
[1748739493065,0.94312521,104460.0,104450.0,0.29198625]
[1748739493273,0.94312521,104460.0,104450.0,0.26731248]
[1748739493506,0.94312521,104460.0,104450.0,0.28241275]
[1748739493910,0.94312521,104460.0,104450.0,0.24876634]
[1748739494119,0.94312521,104460.0,104450.0,0.29198653]
[1748739494389,0.94312521,104460.0,104450.0,0.29198656]
[1748739494591,0.94312521,104460.0,104450.0,0.28525728]
[1748739494800,0.94312521,104460.0,104450.0,0.29198657]
[1748739495031,0.94312521,104460.0,104450.0,0.27404178]
[1748739495250,0.94312521,104460.0,104450.0,0.29198655]
[1748739495434,0.94312521,104460.0,104450.0,0.29198656]
[1748739495607,0.94312521,104460.0,104450.0,0.29198653]
[1748739495937,0.94312521,104460.0,104450.0,0.26731248]
[1748739496242,0.94312521,104460.0,104450.0,0.2919865]
[1748739496564,0.94312521,104460.0,104450.0,0.28525731]
[1748739496764,0.94312521,104460.0,104450.0,0.29198661]
[1748739497175,0.94312521,104460.0,104450.0,0.28241285]
[1748739497678,0.94312521,104460.0,104450.0,0.28241295]
[1748739498076,0.94312521,104460.0,104450.0,0.26671125]
[1748739498224,0.94312521,104460.0,104450.0,0.28241304]
[1748739498627,0.94312521,104460.0,104450.0,0.28241309]
[1748739499109,0.94312521,104460.0,104450.0,0.26446818]
[1748739499317,0.94312521,104460.0,104450.0,0.2824131]
[1748739499628,0.94312521,104460.0,104450.0,0.28241314]
[1748739500340,0.94312521,104460.0,104450.0,0.27568379]
[1748739500518,0.94312521,104460.0,104450.0,0.28241316]
[1748739501801,0.94312521,104460.0,104450.0,0.28241355]
[1748739502242,0.94312521,104460.0,104450.0,0.27568411]
[1748739502403,0.64900521,104460.0,104450.0,0.28301473]
[1748739502631,0.75158437,104460.0,104450.0,0.28525776]
[1748739502838,0.75158437,104460.0,104450.0,0.29258835]
[1748739503024,0.75158437,104460.0,104450.0,0.30380412]
[1748739503025,0.94304521,104460.0,104450.0,0.30380412]
[1748739503202,0.94304521,104460.0,104450.0,0.30156096]
[1748739503409,0.94304521,104460.0,104450.0,0.27628525]
[1748739503580,0.94304521,104460.0,104450.0,0.3105338]
[1748739503785,0.94304521,104460.0,104450.0,0.28585893]
[1748739504039,0.94304521,104460.0,104450.0,0.30156096]
[1748739504255,0.94304521,104460.0,104450.0,0.3038041]
[1748739504490,0.94304521,104460.0,104450.0,0.27628525]
[1748739504658,0.94300521,104460.0,104450.0,0.30380411]
[1748739504884,0.94300521,104460.0,104450.0,0.2942306]
[1748739505186,0.94300521,104460.0,104450.0,0.29423072]
[1748739505401,0.94300521,104460.0,104450.0,0.27628525]
[1748739505594,0.94300521,104460.0,104450.0,0.29423094]
[1748739505792,0.94300521,104460.0,104450.0,0.27628525]
[1748739506003,0.94300521,104460.0,104450.0,0.28525809]
[1748739506209,0.94300521,104460.0,104450.0,0.30993341]
[1748739506544,0.94300521,104460.0,104450.0,0.30993347]
[1748739506747,0.94300521,104460.0,104450.0,0.31950715]
[1748739506991,0.94300521,104460.0,104450.0,0.31950733]
[1748739507317,0.94300521,104460.0,104450.0,0.30993365]
[1748739507508,0.94300521,104460.0,104450.0,0.3099338]
[1748739507718,0.94300521,104460.0,104450.0,0.30993509]
[1748739508521,0.94300521,104460.0,104450.0,0.3003612]
[1748739508758,0.94300521,104460.0,104450.0,0.30036125]
[1748739508983,0.94300521,104460.0,104450.0,0.30036112]
[1748739509204,0.94300521,104460.0,104450.0,0.30993489]
[1748739509424,0.94300521,104460.0,104450.0,0.30993485]
[1748739509644,0.94300521,104460.0,104450.0,0.30993493]
[1748739510323,0.94300521,104460.0,104450.0,0.30036125]
[1748739510536,0.94300521,104460.0,104450.0,0.30993502]
[1748739510719,0.94300521,104460.0,104450.0,0.30036125]
[1748739510932,0.94300521,104460.0,104450.0,0.29363132]
[1748739511156,0.94300521,104460.0,104450.0,0.27568477]
[1748739511371,0.94300521,104460.0,104450.0,0.29363087]
[1748739511585,0.94300521,104460.0,104450.0,0.29363088]
[1748739511919,0.94300521,104460.0,104450.0,0.28690093]
[1748739512140,0.94300521,104460.0,104450.0,0.29363093]
[1748739512360,0.94300521,104460.0,104450.0,0.28690097]
[1748739512574,0.94300521,104460.0,104450.0,0.29363099]
[1748739512795,0.94300521,104460.0,104450.0,0.29363097]
[1748739513014,0.94300521,104460.0,104450.0,0.29363098]
[1748739513235,0.94300521,104460.0,104450.0,0.29363096]
[1748739513452,0.94300521,104460.0,104450.0,0.29363105]
[1748739513672,0.94300521,104460.0,104450.0,0.25998091]
[1748739513874,0.94300521,104460.0,104450.0,0.28690105]
[1748739514103,0.94300521,104460.0,104450.0,0.29363108]
[1748739514525,0.94300521,104460.0,104450.0,0.27792772]
[1748739514731,0.94300521,104460.0,104450.0,0.29363117]
[1748739515373,0.94300521,104460.0,104450.0,0.29363118]
[1748739515635,0.94300521,104460.0,104450.0,0.26671097]
[1748739515831,0.94300521,104460.0,104450.0,0.29363121]
[1748739516208,0.94300521,104460.0,104450.0,0.2846578]
[1748739516563,0.94300521,104460.0,104450.0,0.29363127]
[1748739516910,0.94300521,104460.0,104450.0,0.29363132]
[1748739517521,0.94300521,104460.0,104450.0,0.29363136]
[1748739517749,0.94300521,104460.0,104450.0,0.29363142]
[1748739518572,0.94300521,104460.0,104450.0,0.28465797]
[1748739518808,0.36702382,104460.0,104450.0,0.27628462]
[1748739519051,0.36702382,104460.0,104450.0,0.26955459]
[1748739519052,0.77056962,104460.0,104450.0,0.26955459]
[1748739520438,0.36702382,104460.0,104450.0,0.27912818]
[1748739520696,0.36702345,104460.0,104450.0,0.29543157]
[1748739520920,0.76099612,104460.0,104450.0,0.28870149]
[1748739521359,0.76099612,104460.0,104450.0,0.2572927]
[1748739521565,0.76099612,104460.0,104450.0,0.27523965]
[1748739521795,0.76099612,104460.0,104450.0,0.2572927]
[1748739522037,0.35745096,104460.0,104450.0,0.2572927]
[1748739522257,0.75142373,104460.0,104450.0,0.60626619]
[1748739522480,0.75142373,104460.0,104450.0,0.61523921]
[1748739522690,0.75142373,104460.0,104450.0,0.61299581]
[1748739522907,0.75142373,104460.0,104450.0,0.60626591]
[1748739523127,0.75142373,104460.0,104450.0,0.61299581]
[1748739523406,0.75142373,104460.0,104450.0,0.60626591]
[1748739523626,0.45746373,104460.0,104450.0,0.5972927]
[1748739523840,0.75138373,104460.0,104450.0,0.60626589]
[1748739524068,0.75138373,104460.0,104450.0,0.5972927]
[1748739524291,0.75138373,104460.0,104450.0,0.61523899]
[1748739524508,0.75138373,104460.0,104450.0,0.61299569]
[1748739524722,0.75138373,104460.0,104450.0,0.60626584]
[1748739524954,0.75138373,104460.0,104450.0,0.5972927]
[1748739525354,0.75138364,104460.0,104450.0,0.5972927]
[1748739525784,0.75138364,104460.0,104450.0,0.60626583]
[1748739526001,0.75138364,104460.0,104450.0,0.5972927]
[1748739526217,0.75138364,104460.0,104450.0,0.62421207]
[1748739526427,0.75138364,104460.0,104450.0,0.61523894]
[1748739526633,0.75138364,104460.0,104450.0,0.60626583]
[1748739526964,0.75138364,104460.0,104450.0,0.62196879]
[1748739527189,0.75138364,104460.0,104450.0,0.60626583]
[1748739527395,0.75138364,104460.0,104450.0,0.61523896]
[1748739527624,0.75138364,104460.0,104450.0,0.60626583]
[1748739527846,0.75138364,104460.0,104450.0,0.61299567]
[1748739528081,0.75138364,104460.0,104450.0,0.60626583]
[1748739528293,0.75138364,104460.0,104450.0,0.63991501]
[1748739528498,0.75138364,104460.0,104450.0,0.60626583]
[1748739528704,0.75138364,104460.0,104450.0,0.63318505]
[1748739528919,0.75138364,104460.0,104450.0,0.63991485]
[1748739529123,0.75138364,104460.0,104450.0,0.63991484]